[Event "*** Titled Tuesday 3|2 Blitz (Late)"]
[Site "Chess.com"]
[Date "2016.11.01"]
[Round "1"]
[White "Zlatan56"]
[Black "chessking2151"]
[Result "1-0"]
[WhiteElo "2663"]
[BlackElo "2322"]
[TimeControl "180+2"]
[EndTime "17:09:35 PDT"]
[Termination "Zlatan56 won on time"]

1. Nf3 {[%clk 0:03:00.9]} 1... Nf6 {[%clk 0:02:59.2]} 2. g3 {[%clk 0:03:01.2]}
2... e6 {[%clk 0:02:57.9]} 3. Bg2 {[%clk 0:03:01.2]} 3... Be7 {[%clk 0:02:59.1]}
4. O-O {[%clk 0:03:02.7]} 4... O-O {[%clk 0:03:00.1]} 5. d3 {[%clk 0:03:03.2]}
5... c5 {[%clk 0:02:48.7]} 6. e4 {[%clk 0:02:59.9]} 6... d6 {[%clk 0:02:48.4]}
7. Nbd2 {[%clk 0:03:01.2]} 7... Nc6 {[%clk 0:02:46.4]} 8. c3 {[%clk 0:03:00.9]}
8... Qc7 {[%clk 0:02:38.1]} 9. Re1 {[%clk 0:03:00.3]} 9... Rd8 {[%clk 0:02:37]}
10. Nf1 {[%clk 0:02:57.9]} 10... b5 {[%clk 0:02:37.4]} 11. d4 {[%clk 0:02:53]}
11... Bb7 {[%clk 0:02:22.6]} 12. Bf4 {[%clk 0:02:40.1]} 12... e5 {[%clk
0:02:18.5]} 13. Bg5 {[%clk 0:02:38.9]} 13... h6 {[%clk 0:02:18.7]} 14. Bxf6
{[%clk 0:02:37.5]} 14... Bxf6 {[%clk 0:02:18.6]} 15. Ne3 {[%clk 0:02:37.3]}
15... Ne7 {[%clk 0:02:00.7]} 16. Ng4 {[%clk 0:02:31.7]} 16... Ng6 {[%clk
0:01:55.9]} 17. Nxf6+ {[%clk 0:02:30.4]} 17... gxf6 {[%clk 0:01:55.2]} 18. h4
{[%clk 0:02:26.6]} 18... Bc8 {[%clk 0:01:53.7]} 19. h5 {[%clk 0:02:21]} 19...
Nf8 {[%clk 0:01:54]} 20. Nh4 {[%clk 0:02:21.1]} 20... Ne6 {[%clk 0:01:45.6]} 21.
Nf5 {[%clk 0:02:16.5]} 21... Kh7 {[%clk 0:01:44]} 22. d5 {[%clk 0:02:15]} 22...
Ng7 {[%clk 0:01:43.4]} 23. Nh4 {[%clk 0:02:04.9]} 23... Qe7 {[%clk 0:01:39.4]}
24. Kh2 {[%clk 0:01:58]} 24... Rg8 {[%clk 0:01:32.6]} 25. a4 {[%clk 0:01:55]}
25... b4 {[%clk 0:01:32.7]} 26. cxb4 {[%clk 0:01:55]} 26... cxb4 {[%clk
0:01:34.6]} 27. Rc1 {[%clk 0:01:55.5]} 27... Ne8 {[%clk 0:01:32.7]} 28. Bh3
{[%clk 0:01:41.1]} 28... Bxh3 {[%clk 0:01:23.5]} 29. Kxh3 {[%clk 0:01:43]} 29...
Qd7+ {[%clk 0:01:25]} 30. Kh2 {[%clk 0:01:42.2]} 30... Ng7 {[%clk 0:01:26.2]}
31. Qf3 {[%clk 0:01:40.9]} 31... Rgc8 {[%clk 0:01:20.9]} 32. Qxf6 {[%clk
0:01:35.5]} 32... Nxh5 {[%clk 0:01:20.1]} 33. Qf5+ {[%clk 0:01:36.4]} 33... Qxf5
{[%clk 0:01:10.1]} 34. Nxf5 {[%clk 0:01:38.3]} 34... Rd8 {[%clk 0:00:54.4]} 35.
Rc7 {[%clk 0:01:33.1]} 35... Kg8 {[%clk 0:00:51.5]} 36. Nxh6+ {[%clk 0:01:32]}
36... Kg7 {[%clk 0:00:51.6]} 37. Nxf7 {[%clk 0:01:32.5]} 37... Rdc8 {[%clk
0:00:51.9]} 38. Rec1 {[%clk 0:01:29.6]} 38... Rxc7 {[%clk 0:00:48.9]} 39. Rxc7
{[%clk 0:01:31.5]} 39... Nf6 {[%clk 0:00:42.6]} 40. Nxd6+ {[%clk 0:01:31.9]}
40... Kg6 {[%clk 0:00:38.9]} 41. f3 {[%clk 0:01:32.7]} 41... Rd8 {[%clk
0:00:39.5]} 42. Nc4 {[%clk 0:01:31.7]} 42... Re8 {[%clk 0:00:34.2]} 43. Nd6
{[%clk 0:01:30.2]} 43... Rd8 {[%clk 0:00:34]} 44. Nf5 {[%clk 0:01:30.5]} 44...
Rh8+ {[%clk 0:00:35.2]} 45. Kg2 {[%clk 0:01:30.5]} 45... Nh5 {[%clk 0:00:34.9]}
46. d6 {[%clk 0:01:27.4]} 46... Rd8 {[%clk 0:00:29.1]} 47. d7 {[%clk 0:01:27.8]}
47... Kf7 {[%clk 0:00:27.4]} 48. Rxa7 {[%clk 0:01:28.1]} 48... Nf6 {[%clk
0:00:27.3]} 49. Nd6+ {[%clk 0:01:22.7]} 49... Ke6 {[%clk 0:00:24.4]} 50. Nb7
{[%clk 0:01:22.1]} 50... Rxd7 {[%clk 0:00:18.7]} 51. Nc5+ {[%clk 0:01:22.4]}
51... Kd6 {[%clk 0:00:20.3]} 52. Nxd7 {[%clk 0:01:23.2]} 52... Nxd7 {[%clk
0:00:22.2]} 53. Rxd7+ {[%clk 0:01:22.3]} 53... Kxd7 {[%clk 0:00:24.1]} 54. f4
{[%clk 0:01:20.8]} 54... Kc6 {[%clk 0:00:26]} 55. f5 {[%clk 0:01:18.6]} 55...
Kb6 {[%clk 0:00:27.9]} 56. f6 {[%clk 0:01:19.1]} 56... Ka5 {[%clk 0:00:29.8]}
57. b3 {[%clk 0:01:19.7]} 57... Kb6 {[%clk 0:00:29.5]} 58. f7 {[%clk 0:01:20.6]}
58... Kc5 {[%clk 0:00:31.4]} 59. f8=Q+ {[%clk 0:01:20.7]} 59... Kd4 {[%clk
0:00:33.3]} 60. Qxb4+ {[%clk 0:01:20.3]} 60... Kd3 {[%clk 0:00:34.8]} 61. a5
{[%clk 0:01:18.2]} 61... Ke3 {[%clk 0:00:36.7]} 62. a6 {[%clk 0:01:16.6]} 62...
Ke2 {[%clk 0:00:38.6]} 63. a7 {[%clk 0:01:17.3]} 63... Ke3 {[%clk 0:00:40.5]}
64. a8=Q {[%clk 0:01:16.9]} 64... Ke2 {[%clk 0:00:42.4]} 65. Qa6+ {[%clk
0:01:16.8]} 65... Ke3 {[%clk 0:00:44.3]} 66. Qc3+ {[%clk 0:01:17.2]} 1-0

[Event "*** Titled Tuesday 3|2 Blitz (Late)"]
[Site "Chess.com"]
[Date "2016.11.01"]
[Round "1"]
[White "howitzer14"]
[Black "tigra"]
[Result "1-0"]
[WhiteElo "2764"]
[BlackElo "2446"]
[TimeControl "180+2"]
[EndTime "17:09:37 PDT"]
[Termination "howitzer14 won by resignation"]

1. Nf3 {[%clk 0:03:01]} 1... d5 {[%clk 0:02:53.7]} 2. g3 {[%clk 0:03:02.9]} 2...
Bf5 {[%clk 0:02:53]} 3. Bg2 {[%clk 0:03:04.3]} 3... e6 {[%clk 0:02:53.8]} 4. c4
{[%clk 0:03:04.6]} 4... c6 {[%clk 0:02:54.9]} 5. b3 {[%clk 0:02:59.2]} 5... Nf6
{[%clk 0:02:55.2]} 6. Bb2 {[%clk 0:02:59.7]} 6... Be7 {[%clk 0:02:56.2]} 7. d3
{[%clk 0:03:00]} 7... O-O {[%clk 0:02:56.6]} 8. O-O {[%clk 0:03:00.3]} 8... h6
{[%clk 0:02:57.6]} 9. Nbd2 {[%clk 0:02:59.8]} 9... Re8 {[%clk 0:02:57.9]} 10.
Rc1 {[%clk 0:02:57.8]} 10... a5 {[%clk 0:02:57.4]} 11. a3 {[%clk 0:02:58.4]}
11... Bf8 {[%clk 0:02:56]} 12. Rc2 {[%clk 0:02:58.5]} 12... Na6 {[%clk
0:02:53.7]} 13. Qa1 {[%clk 0:02:59.5]} 13... Nd7 {[%clk 0:02:51.5]} 14. Rfc1
{[%clk 0:03:00.3]} 14... Bh7 {[%clk 0:02:51.8]} 15. h3 {[%clk 0:02:55.4]} 15...
Qe7 {[%clk 0:02:51.8]} 16. Ne5 {[%clk 0:02:43.6]} 16... Nxe5 {[%clk 0:02:48.5]}
17. Bxe5 {[%clk 0:02:45.5]} 17... Qxa3 {[%clk 0:02:36.1]} 18. Ra2 {[%clk
0:02:44.6]} 18... Qb4 {[%clk 0:02:17.5]} 19. Bc3 {[%clk 0:02:37.3]} 19... Qb6
{[%clk 0:02:14.2]} 20. Bxa5 {[%clk 0:02:33.2]} 20... Nb4 {[%clk 0:01:42.4]} 21.
Bxb6 {[%clk 0:02:16.2]} 21... Rxa2 {[%clk 0:01:39.3]} 22. Qc3 {[%clk 0:02:16.7]}
22... Ra6 {[%clk 0:01:11.3]} 23. Be3 {[%clk 0:02:12]} 23... Na2 {[%clk
0:01:09.3]} 24. Qb2 {[%clk 0:02:08.1]} 24... Nxc1 {[%clk 0:01:02.7]} 25. Qxc1
{[%clk 0:02:10]} 25... Rea8 {[%clk 0:01:03.5]} 26. Kh2 {[%clk 0:02:06.6]} 26...
Ra2 {[%clk 0:01:03.3]} 27. c5 {[%clk 0:02:01.7]} 27... Be7 {[%clk 0:01:02.2]}
28. Bd4 {[%clk 0:01:59.9]} 28... Bg5 {[%clk 0:00:59.3]} 29. f4 {[%clk
0:01:57.9]} 29... Bd8 {[%clk 0:01:00]} 30. b4 {[%clk 0:01:54]} 30... R8a4 {[%clk
0:00:58.6]} 31. Bc3 {[%clk 0:01:47.7]} 31... Bg6 {[%clk 0:00:46.5]} 32. Bf3
{[%clk 0:01:47.7]} 32... b6 {[%clk 0:00:42.6]} 33. Kg2 {[%clk 0:01:35]} 33...
R4a3 {[%clk 0:00:39.6]} 34. Bb2 {[%clk 0:01:29.3]} 34... Ra4 {[%clk 0:00:40.2]}
35. Bc3 {[%clk 0:01:30.4]} 35... R4a3 {[%clk 0:00:40.2]} 36. Bb2 {[%clk
0:01:32]} 36... Ra4 {[%clk 0:00:41.3]} 37. Qb1 {[%clk 0:01:25]} 37... bxc5
{[%clk 0:00:37.4]} 38. bxc5 {[%clk 0:01:25.5]} 38... Ba5 {[%clk 0:00:37.4]} 39.
Nb3 {[%clk 0:01:24.7]} 39... Bb4 {[%clk 0:00:37.8]} 40. Nc1 {[%clk 0:01:25.3]}
40... Rxb2 {[%clk 0:00:33.8]} 41. Qxb2 {[%clk 0:01:25.2]} 41... Bxc5 {[%clk
0:00:35.4]} 42. Nb3 {[%clk 0:01:26.1]} 42... Bb6 {[%clk 0:00:32.9]} 43. h4
{[%clk 0:01:26.2]} 43... c5 {[%clk 0:00:26.8]} 44. h5 {[%clk 0:01:26.2]} 44...
Bf5 {[%clk 0:00:24.6]} 45. Nd2 {[%clk 0:01:22.8]} 45... Rb4 {[%clk 0:00:22.9]}
46. Qc3 {[%clk 0:01:22]} 46... Rb5 {[%clk 0:00:21.4]} 47. Qa3 {[%clk 0:01:17.7]}
47... Kh8 {[%clk 0:00:21.2]} 48. Qa8+ {[%clk 0:01:14.4]} 48... Kh7 {[%clk
0:00:21.9]} 49. g4 {[%clk 0:01:15.8]} 49... Bxd3 {[%clk 0:00:23.1]} 50. exd3
{[%clk 0:00:56.9]} 50... Rb2 {[%clk 0:00:23.8]} 51. Qe8 {[%clk 0:00:58.3]} 51...
Rxd2+ {[%clk 0:00:24]} 52. Kg3 {[%clk 0:00:59.8]} 52... Rxd3 {[%clk 0:00:24.2]}
53. Qxf7 {[%clk 0:01:00]} 53... Re3 {[%clk 0:00:25.1]} 54. g5 {[%clk 0:00:56.3]}
54... hxg5 {[%clk 0:00:25.2]} 55. fxg5 {[%clk 0:00:57.7]} 55... c4 {[%clk
0:00:25.3]} 56. Kg4 {[%clk 0:00:37.1]} 56... Re1 {[%clk 0:00:22.8]} 57. Qg6+
{[%clk 0:00:38]} 57... Kh8 {[%clk 0:00:23.4]} 58. Qe8+ {[%clk 0:00:39.9]} 58...
Kh7 {[%clk 0:00:24.4]} 59. g6+ {[%clk 0:00:41.8]} 1-0

[Event "*** Titled Tuesday 3|2 Blitz (Late)"]
[Site "Chess.com"]
[Date "2016.11.01"]
[Round "1"]
[White "attack2mateU"]
[Black "norwaytoadog"]
[Result "0-1"]
[WhiteElo "2436"]
[BlackElo "1996"]
[TimeControl "180+2"]
[EndTime "17:10:01 PDT"]
[Termination "norwaytoadog won by resignation"]

1. e4 {[%clk 0:02:53]} 1... e5 {[%clk 0:03:00]} 2. Nf3 {[%clk 0:02:54]} 2... Nc6
{[%clk 0:03:00.8]} 3. Bb5 {[%clk 0:02:54.6]} 3... a6 {[%clk 0:03:01.6]} 4. Ba4
{[%clk 0:02:55.4]} 4... Nf6 {[%clk 0:03:02.2]} 5. O-O {[%clk 0:02:55.7]} 5...
Be7 {[%clk 0:03:02]} 6. Re1 {[%clk 0:02:55.9]} 6... b5 {[%clk 0:03:02.4]} 7. Bb3
{[%clk 0:02:56.9]} 7... d6 {[%clk 0:03:03.1]} 8. c3 {[%clk 0:02:57.2]} 8... O-O
{[%clk 0:03:03.7]} 9. h3 {[%clk 0:02:58.1]} 9... Bb7 {[%clk 0:03:04.6]} 10. d4
{[%clk 0:02:57.7]} 10... Re8 {[%clk 0:03:01.6]} 11. Nbd2 {[%clk 0:02:42.8]}
11... exd4 {[%clk 0:03:01.8]} 12. cxd4 {[%clk 0:02:43.7]} 12... Nd7 {[%clk
0:03:00.6]} 13. Nf1 {[%clk 0:02:28.3]} 13... Na5 {[%clk 0:03:00.3]} 14. Bc2
{[%clk 0:02:27.4]} 14... Bf6 {[%clk 0:03:00.5]} 15. Ng3 {[%clk 0:02:21.9]} 15...
Nf8 {[%clk 0:02:58.6]} 16. Nh5 {[%clk 0:01:51.7]} 16... Ne6 {[%clk 0:02:35.4]}
17. b3 {[%clk 0:01:24.5]} 17... c5 {[%clk 0:02:24.9]} 18. Bb2 {[%clk 0:01:17.9]}
18... cxd4 {[%clk 0:02:08.3]} 19. Nxd4 {[%clk 0:01:18.4]} 19... Be5 {[%clk
0:01:55.5]} 20. Qd2 {[%clk 0:01:13.7]} 20... g6 {[%clk 0:01:51.7]} 21. Ng3
{[%clk 0:00:47.8]} 21... Nf4 {[%clk 0:01:49.7]} 22. Rad1 {[%clk 0:00:45.4]}
22... Nc6 {[%clk 0:01:24.3]} 23. Bb1 {[%clk 0:00:40.5]} 23... Qf6 {[%clk
0:01:17.3]} 24. Nxc6 {[%clk 0:00:23.6]} 24... Bxc6 {[%clk 0:01:08.3]} 25. Bxe5
{[%clk 0:00:24.1]} 25... dxe5 {[%clk 0:01:06.6]} 26. Qd6 {[%clk 0:00:25]} 26...
Re6 {[%clk 0:01:05.2]} 27. Qc5 {[%clk 0:00:25.9]} 27... Rae8 {[%clk 0:01:01.2]}
28. b4 {[%clk 0:00:24.2]} 28... Qg5 {[%clk 0:00:58.5]} 29. Kh2 {[%clk
0:00:12.1]} 29... h5 {[%clk 0:00:58.8]} 30. Rg1 {[%clk 0:00:13.4]} 30... h4
{[%clk 0:00:58.1]} 31. Nf1 {[%clk 0:00:14.5]} 31... Ne2 {[%clk 0:00:56.6]} 32.
Qe3 {[%clk 0:00:06.1]} 32... Qxe3 {[%clk 0:00:52.2]} 33. Nxe3 {[%clk 0:00:08]}
33... Nxg1 {[%clk 0:00:52.6]} 34. Kxg1 {[%clk 0:00:09.9]} 34... Kg7 {[%clk
0:00:52]} 35. a3 {[%clk 0:00:10.4]} 35... R8e7 {[%clk 0:00:50.3]} 36. Ba2 {[%clk
0:00:10.7]} 36... Rf6 {[%clk 0:00:50.1]} 37. Bd5 {[%clk 0:00:11.4]} 37... Bb7
{[%clk 0:00:45.5]} 38. Rc1 {[%clk 0:00:12.1]} 38... Rf4 {[%clk 0:00:43]} 39. f3
{[%clk 0:00:12.9]} 39... Rf6 {[%clk 0:00:41.1]} 40. Bxb7 {[%clk 0:00:10.6]}
40... Rxb7 {[%clk 0:00:41.3]} 41. Nd5 {[%clk 0:00:12.5]} 41... Rd6 {[%clk
0:00:41.3]} 42. Rc8 {[%clk 0:00:11.8]} 42... f5 {[%clk 0:00:40.3]} 43. Re8
{[%clk 0:00:10.9]} 43... Kf7 {[%clk 0:00:37.7]} 44. Rxe5 {[%clk 0:00:10]} 44...
Re6 {[%clk 0:00:37.8]} 45. Rxe6 {[%clk 0:00:07.9]} 45... Kxe6 {[%clk 0:00:38.6]}
46. Nf4+ {[%clk 0:00:09.6]} 46... Kf6 {[%clk 0:00:38.7]} 47. e5+ {[%clk
0:00:10.5]} 47... Kxe5 {[%clk 0:00:39.6]} 48. Nxg6+ {[%clk 0:00:11.7]} 48... Kf6
{[%clk 0:00:40.3]} 49. Nxh4 {[%clk 0:00:12.6]} 49... Rc7 {[%clk 0:00:39.5]} 50.
g4 {[%clk 0:00:11.3]} 50... fxg4 {[%clk 0:00:40.4]} 51. hxg4 {[%clk 0:00:12.4]}
51... Rc3 {[%clk 0:00:41.1]} 52. Kg2 {[%clk 0:00:12.9]} 52... Rxa3 {[%clk
0:00:42]} 53. Nf5 {[%clk 0:00:05.5]} 53... a5 {[%clk 0:00:42.3]} 54. bxa5 {[%clk
0:00:06.1]} 54... b4 {[%clk 0:00:43.3]} 55. Nd4 {[%clk 0:00:06.4]} 55... b3
{[%clk 0:00:43.6]} 56. Nxb3 {[%clk 0:00:07.1]} 56... Rxb3 {[%clk 0:00:44.3]} 57.
a6 {[%clk 0:00:09]} 57... Ra3 {[%clk 0:00:45.2]} 58. Kg3 {[%clk 0:00:10.9]}
58... Rxa6 {[%clk 0:00:46]} 59. Kh4 {[%clk 0:00:11.9]} 59... Ra4 {[%clk
0:00:45.1]} 60. Kh5 {[%clk 0:00:12.2]} 60... Rf4 {[%clk 0:00:44.3]} 61. g5+
{[%clk 0:00:13.4]} 61... Kg7 {[%clk 0:00:43.6]} 0-1

[Event "*** Titled Tuesday 3|2 Blitz (Late)"]
[Site "Chess.com"]
[Date "2016.11.01"]
[Round "1"]
[White "Fandorine"]
[Black "KingFlorida"]
[Result "1-0"]
[WhiteElo "2644"]
[BlackElo "2309"]
[TimeControl "180+2"]
[EndTime "17:11:44 PDT"]
[Termination "Fandorine won on time"]

1. e4 {[%clk 0:02:58.4]} 1... Nf6 {[%clk 0:02:59.6]} 2. e5 {[%clk 0:02:57.2]}
2... Nd5 {[%clk 0:03:00.7]} 3. d4 {[%clk 0:02:57.9]} 3... d6 {[%clk 0:03:01.3]}
4. Nf3 {[%clk 0:02:59.6]} 4... Bg4 {[%clk 0:03:02]} 5. Be2 {[%clk 0:03:01.2]}
5... c6 {[%clk 0:03:02.8]} 6. exd6 {[%clk 0:02:57.5]} 6... exd6 {[%clk
0:03:01.6]} 7. O-O {[%clk 0:02:58.8]} 7... Be7 {[%clk 0:03:01.4]} 8. h3 {[%clk
0:02:30.6]} 8... Bh5 {[%clk 0:03:00.8]} 9. c4 {[%clk 0:02:26.6]} 9... Nb6 {[%clk
0:02:58]} 10. Qb3 {[%clk 0:02:25.8]} 10... O-O {[%clk 0:02:56.9]} 11. Nc3 {[%clk
0:02:24.8]} 11... N8d7 {[%clk 0:02:49.6]} 12. Be3 {[%clk 0:02:24.6]} 12... Re8
{[%clk 0:02:41.8]} 13. Rad1 {[%clk 0:02:19.5]} 13... Nf6 {[%clk 0:02:22.3]} 14.
Rfe1 {[%clk 0:02:09.7]} 14... Bg6 {[%clk 0:01:47.8]} 15. Nh4 {[%clk 0:01:56.3]}
15... Qd7 {[%clk 0:01:35.4]} 16. Nxg6 {[%clk 0:01:49.8]} 16... hxg6 {[%clk
0:01:37.3]} 17. d5 {[%clk 0:01:51.4]} 17... c5 {[%clk 0:01:34.7]} 18. Bf4 {[%clk
0:01:31.1]} 18... Bf8 {[%clk 0:01:04.3]} 19. a4 {[%clk 0:01:29.6]} 19... Nc8
{[%clk 0:01:01.6]} 20. a5 {[%clk 0:01:25.5]} 20... Ne7 {[%clk 0:01:00.7]} 21.
Bd3 {[%clk 0:01:18.5]} 21... Rab8 {[%clk 0:00:46.5]} 22. Qa4 {[%clk 0:00:54.2]}
22... Qxa4 {[%clk 0:00:39.9]} 23. Nxa4 {[%clk 0:00:56.1]} 23... Nf5 {[%clk
0:00:38.1]} 24. Nc3 {[%clk 0:00:45.4]} 24... Nd4 {[%clk 0:00:33.5]} 25. Kf1
{[%clk 0:00:45]} 25... Nd7 {[%clk 0:00:32.2]} 26. Rxe8 {[%clk 0:00:08.3]} 26...
Rxe8 {[%clk 0:00:32.6]} 27. Nb5 {[%clk 0:00:09.7]} 27... Nxb5 {[%clk 0:00:31.7]}
28. cxb5 {[%clk 0:00:11.6]} 28... Be7 {[%clk 0:00:22.6]} 29. b3 {[%clk
0:00:06.8]} 29... g5 {[%clk 0:00:19.6]} 30. Bg3 {[%clk 0:00:07.2]} 30... g6
{[%clk 0:00:21]} 31. Be2 {[%clk 0:00:08.1]} 31... f5 {[%clk 0:00:20.4]} 32. f4
{[%clk 0:00:09.2]} 32... gxf4 {[%clk 0:00:17.1]} 33. Bxf4 {[%clk 0:00:11.1]}
33... g5 {[%clk 0:00:19]} 34. Bd2 {[%clk 0:00:11.5]} 34... f4 {[%clk 0:00:19.8]}
35. Re1 {[%clk 0:00:12.4]} 35... Bf6 {[%clk 0:00:19.9]} 36. Bg4 {[%clk
0:00:11.3]} 36... Rxe1+ {[%clk 0:00:21.8]} 37. Kxe1 {[%clk 0:00:12.2]} 37... Ne5
{[%clk 0:00:22.6]} 38. Bc8 {[%clk 0:00:12.4]} 38... b6 {[%clk 0:00:24.1]} 39. a6
{[%clk 0:00:12.3]} 39... Kf7 {[%clk 0:00:20]} 40. Ke2 {[%clk 0:00:13.7]} 40...
Ke7 {[%clk 0:00:12.7]} 41. h4 {[%clk 0:00:11.9]} 41... gxh4 {[%clk 0:00:10.7]}
42. Bxf4 {[%clk 0:00:12.9]} 42... Ng6 {[%clk 0:00:11.4]} 43. Be3 {[%clk
0:00:09.6]} 43... Be5 {[%clk 0:00:11.7]} 44. Kf3 {[%clk 0:00:08.7]} 44... Kf6
{[%clk 0:00:09]} 45. Kg4 {[%clk 0:00:08.2]} 45... Bg3 {[%clk 0:00:09.7]} 46.
Bg5+ {[%clk 0:00:09.1]} 46... Kg7 {[%clk 0:00:09.3]} 47. Bf5 {[%clk 0:00:07.6]}
47... Ne5+ {[%clk 0:00:10.1]} 48. Kh5 {[%clk 0:00:09.3]} 48... c4 {[%clk
0:00:06.5]} 49. bxc4 {[%clk 0:00:10.3]} 49... Nxc4 {[%clk 0:00:08.4]} 50. Bxh4
{[%clk 0:00:11.4]} 50... Bxh4 {[%clk 0:00:09.6]} 51. Kxh4 {[%clk 0:00:12.8]}
51... Kf6 {[%clk 0:00:08.6]} 52. g4 {[%clk 0:00:14]} 52... Ne3 {[%clk
0:00:09.1]} 53. Be6 {[%clk 0:00:13.4]} 53... Nc2 {[%clk 0:00:08.1]} 54. g5+
{[%clk 0:00:12.1]} 54... Kg7 {[%clk 0:00:07.5]} 55. Kg4 {[%clk 0:00:13.6]} 55...
Ne3+ {[%clk 0:00:04.5]} 56. Kf4 {[%clk 0:00:13.8]} 56... Nc2 {[%clk 0:00:05.7]}
57. Bf5 {[%clk 0:00:09.2]} 57... Nd4 {[%clk 0:00:05.5]} 58. Bd3 {[%clk
0:00:10.2]} 58... Kf7 {[%clk 0:00:06.5]} 59. Ke4 {[%clk 0:00:10]} 59... Nb3
{[%clk 0:00:08]} 60. Bc2 {[%clk 0:00:09.3]} 60... Nc5+ {[%clk 0:00:08.5]} 61.
Kf5 {[%clk 0:00:10.3]} 61... Kg7 {[%clk 0:00:09.9]} 62. g6 {[%clk 0:00:10.2]}
62... Kg8 {[%clk 0:00:08.4]} 63. Kf6 {[%clk 0:00:10.5]} 63... Kf8 {[%clk
0:00:10.3]} 64. g7+ {[%clk 0:00:10.5]} 64... Kg8 {[%clk 0:00:11.5]} 65. Bf5
{[%clk 0:00:12.1]} 65... Ne4+ {[%clk 0:00:10.1]} 66. Ke7 {[%clk 0:00:10.7]}
66... Nc3 {[%clk 0:00:10.1]} 67. Bd7 {[%clk 0:00:04.6]} 67... Nxd5+ {[%clk
0:00:07.8]} 68. Kxd6 {[%clk 0:00:05.4]} 68... Nf6 {[%clk 0:00:03.9]} 69. Bc6
{[%clk 0:00:06.3]} 69... Kxg7 {[%clk 0:00:04.2]} 70. Kc7 {[%clk 0:00:08]} 70...
Kf7 {[%clk 0:00:05.3]} 71. Kb7 {[%clk 0:00:09.7]} 71... Ke7 {[%clk 0:00:06.8]}
72. Kxa7 {[%clk 0:00:11.4]} 72... Kd6 {[%clk 0:00:08.4]} 73. Kxb6 {[%clk
0:00:12.6]} 1-0